fUST/lending_fUST_20240512
["ID","MTS","AMOUNT","RATE_DAILY","PERIOD"]
[326849021,1715509893137,-792.18,0.00066849,120]
[326849022,1715509893147,-700.0,0.00066849,120]
[326849023,1715509893156,-348.50628502,0.00066849,120]
[326849024,1715509893165,-158.6457135,0.00066849,120]
[326849025,1715509893174,-500.0,0.00066849,120]
[326849026,1715509893183,-500.0,0.00066849,120]
[326849027,1715509893194,-500.0,0.00066849,120]
[326849028,1715509893205,-687.88,0.00066849,120]
[326849029,1715509893215,-1184.42,0.00066849,120]
[326849030,1715509893223,-622.05,0.00066849,120]
[326849031,1715509893233,-173.87821129,0.00066849,120]
[326849032,1715509893242,-500.0,0.00066849,120]
[326849033,1715509893251,-500.0,0.00066849,120]
[326849034,1715509893260,-500.0,0.00066849,120]
[326849035,1715509893269,-1188.88,0.00066849,120]
[326849036,1715509893278,-500.0,0.00066849,120]
[326849037,1715509893288,-664.65,0.00066849,120]
[326849038,1715509893298,-500.0,0.00066849,120]
[326849039,1715509893307,-500.0,0.00066849,120]
[326849040,1715509893316,-706.45,0.00066849,120]
[326849041,1715509893325,-589.94,0.00066849,120]
[326849042,1715509893334,-500.0,0.00066849,120]
[326849043,1715509893343,-500.0,0.00066849,120]
[326849044,1715509893352,-718.87,0.00066849,120]
[326849045,1715509893361,-668.81,0.00066849,120]
[326849046,1715509893371,-1198.11,0.00066849,120]
[326849047,1715509893380,-500.0,0.00066849,120]
[326849048,1715509893389,-859.74,0.00066849,120]
[326849049,1715509893401,-500.0,0.00066849,120]
[326849050,1715509893410,-1019.78,0.00066849,120]
[326849051,1715509893419,-500.0,0.00066849,120]
[326849052,1715509893428,-1222.61,0.00066849,120]
[326849053,1715509893437,-500.0,0.00066849,120]
[326849054,1715509893446,-1076.09,0.00066849,4]
[326849055,1715509893454,-500.0,0.00066849,120]
[326849056,1715509893463,-777.18,0.00066849,120]
[326849057,1715509893472,-623.85,0.00066849,120]
[326849058,1715509893481,-879.42,0.00066849,120]
[326849059,1715509893490,-300.0,0.00066849,7]
[326849060,1715509893499,-500.0,0.00066849,120]
[326849061,1715509893513,-500.0,0.00066849,120]
[326849062,1715509893525,-1022.56,0.00066849,120]
[326849063,1715509893535,-185.4995684,0.00066849,120]
[326849064,1715509893544,-1415.7,0.00066849,120]
[326849065,1715509893553,-702.94,0.00066849,120]
[326849066,1715509893562,-676.96,0.00066849,120]
[326849067,1715509893571,-1146.59,0.00066849,120]
[326849068,1715509893581,-846.45,0.00066849,120]
[326849069,1715509893590,-507.76314332,0.00066849,120]
[326849070,1715509893599,-500.0,0.00066849,120]
[326849071,1715509893607,-506.08,0.00066849,120]
[326849072,1715509893618,-694.21,0.00066849,120]
[326849073,1715509893626,-534.57,0.00066849,120]
[326849074,1715509893635,-628.13,0.00066849,120]
[326849075,1715509893646,-500.0,0.00066849,120]
[326849076,1715509893654,-563.98,0.00066849,120]
[326849077,1715509893664,-201.40230925,0.00066849,120]
[326849078,1715509893672,-500.0,0.00066849,120]
[326849079,1715509893682,-500.0,0.00066849,120]
[326849080,1715509893690,-1333.29,0.00066849,120]
[326849081,1715509893699,-2080.97,0.00066849,120]
[326849082,1715509893708,-500.0,0.00066849,120]
[326849083,1715509893717,-697.5,0.00066849,120]
[326849084,1715509893726,-500.0,0.00066849,120]
[326849085,1715509893736,-1146.84,0.00066849,120]
[326849086,1715509893745,-500.0,0.00066849,120]
[326849087,1715509893754,-500.0,0.00066849,120]
[326849088,1715509893763,-500.0,0.00066849,120]
[326849089,1715509893771,-500.0,0.00066849,120]
[326849090,1715509893780,-1062.31,0.00066849,120]
[326849091,1715509893790,-887.25,0.00066849,120]
[326849092,1715509893799,-500.0,0.00066849,120]
[326849093,1715509893808,-884.99,0.00066849,120]
[326849094,1715509893817,-1945.84,0.00066849,120]
[326849095,1715509893827,-1101.29,0.00066849,120]
[326849096,1715509893836,-683.11,0.00066849,120]
[326849097,1715509893846,-500.0,0.00066849,120]
[326849098,1715509893856,-500.0,0.00066849,120]
[326849099,1715509893865,-500.0,0.00066849,120]
[326849100,1715509893874,-634.75,0.00066849,120]
[326849101,1715509893883,-500.0,0.00066849,120]
[326849102,1715509893892,-1202.07,0.00066849,120]
[326849103,1715509893902,-652.77,0.00066849,120]
[326849104,1715509893911,-665.8,0.00066849,120]
[326849105,1715509894036,-2405.12,0.00066849,120]
[326849106,1715509894045,-1296.67,0.00066849,120]
[326849107,1715509894055,-500.0,0.00066849,120]
[326849108,1715509894064,-500.0,0.00066849,120]
[326849109,1715509894073,-515.15,0.00066849,120]
[326849110,1715509894082,-1711.77,0.00066849,120]
[326849111,1715509894091,-500.0,0.00066849,120]
[326849112,1715509894100,-634.68,0.00066849,120]
[326849113,1715509894109,-674.93,0.00066849,120]
[326849114,1715509894118,-500.0,0.00066849,120]
[326849115,1715509894127,-669.18,0.00066849,120]
[326849116,1715509894136,-662.7,0.00066849,120]
[326849117,1715509894147,-672.84,0.00066849,120]
[326849118,1715509894156,-500.0,0.00066849,120]
[326849119,1715509894166,-500.0,0.00066849,120]
[326849120,1715509894175,-1082.38,0.00066849,120]
[326849121,1715509894184,-500.0,0.00066849,120]
[326849122,1715509894194,-2510.37,0.00066849,120]
[326849123,1715509894207,-4167.16,0.00066849,120]
[326849124,1715509894216,-1216.89,0.00066849,7]
[326849125,1715509894226,-568.37,0.00066849,120]
[326849126,1715509894235,-529.05167222,0.00066849,120]
[326849127,1715509894245,-500.0,0.00066849,120]
[326849128,1715509894254,-634.17,0.00066849,120]
[326849129,1715509894263,-711.19,0.00066849,120]
[326849130,1715509894273,-645.64,0.00066849,120]
[326849131,1715509894284,-634.59,0.00066849,120]
[326849132,1715509894293,-522.61,0.00066849,120]
[326849133,1715509894302,-1199.73,0.00066849,120]
[326849134,1715509894311,-852.85,0.00066849,120]
[326849135,1715509894320,-500.0,0.00066849,120]
[326849136,1715509894329,-625.2,0.00066849,120]
[326849137,1715509894338,-500.0,0.00066849,120]
[326849138,1715509894347,-500.0,0.00066849,120]
[326849139,1715509894356,-728.74,0.00066849,120]
[326849140,1715509894365,-501.04,0.00066849,120]
[326849141,1715509894374,-588.33,0.00066849,120]
[326849142,1715509894383,-403.35667806,0.00066849,120]
[326849143,1715509894393,-1576.44,0.00066849,120]
[326849144,1715509894404,-500.0,0.00066849,120]
[326849145,1715509894413,-500.0,0.00066849,120]
[326849146,1715509894422,-642.78,0.00066849,120]
[326849147,1715509894431,-500.0,0.00066849,120]
[326849148,1715509894440,-1474.83,0.00066849,120]
[326849149,1715509894449,-500.0,0.00066849,120]
[326849150,1715509894458,-193.21577092,0.00066849,120]
[326849151,1715509894467,-500.0,0.00066849,120]
[326849152,1715509894476,-1138.94,0.00066849,120]
[326849153,1715509894485,-500.0,0.00066849,120]
[326849154,1715509894495,-2052.53,0.00066849,120]
[326849155,1715509894504,-3343.91,0.00066849,120]
[326849156,1715509894513,-500.0,0.00066849,120]
[326849157,1715509894522,-1280.34,0.00066849,120]
[326849158,1715509894531,-589.15,0.00066849,120]
[326849159,1715509894541,-990.89,0.00066849,120]
[326849160,1715509894550,-1022.63,0.00066849,120]
[326849161,1715509894559,-1377.96,0.00066849,120]
[326849162,1715509894568,-500.0,0.00066849,120]
[326849163,1715509894577,-849.72,0.00066849,120]
[326849164,1715509894587,-500.0,0.00066849,120]
[326849165,1715509894595,-2169.41,0.00066849,120]
[326849166,1715509894605,-658.6,0.00066849,120]
[326849167,1715509894614,-926.02,0.00066849,120]
[326849168,1715509894622,-2031.16,0.00066849,120]
[326849169,1715509894631,-500.0,0.00066849,120]
[326849170,1715509894640,-1300.61,0.00066849,120]
[326849171,1715509894651,-4158.51,0.00066849,120]
[326849172,1715509894660,-500.0,0.00066849,120]
[326849173,1715509894670,-1707.07,0.00066849,120]
[326849174,1715509894679,-747.04,0.00066849,120]
[326849175,1715509894688,-500.0,0.00066849,120]
[326849176,1715509894698,-610.04,0.00066849,120]
[326849177,1715509894707,-616.93,0.00066849,120]
[326849178,1715509894716,-555.14,0.00066849,120]
[326849179,1715509894725,-503.69901849,0.00066849,120]
[326849180,1715509894734,-663.17,0.00066849,60]
[326849181,1715509894743,-1965.65,0.00066849,120]
[326849182,1715509894752,-500.0,0.00066849,120]
[326849183,1715509894761,-1720.11,0.00066849,120]
[326849184,1715509894770,-500.0,0.00066849,120]
[326849185,1715509894779,-1258.86,0.00066849,7]
[326849186,1715509894788,-531.16,0.00066849,120]
[326849187,1715509894797,-500.0,0.00066849,120]
[326849188,1715509894807,-1275.8,0.00066849,120]
[326849189,1715509894816,-1330.34,0.00066849,120]
[326849190,1715509894825,-1477.44,0.00066849,120]
[326849191,1715509894834,-500.0,0.00066849,120]
[326849192,1715509894843,-500.0,0.00066849,120]
[326849193,1715509894852,-576.10690414,0.00066849,120]
[326849194,1715509894861,-1415.41,0.00066849,120]
[326849195,1715509894870,-790.3,0.00066849,120]
[326849196,1715509894879,-500.0,0.00066849,120]
[326849197,1715509894887,-1299.65,0.00066849,120]
[326849198,1715509894896,-631.96,0.00066849,120]
[326849199,1715509894906,-775.43,0.00066849,120]
[326849200,1715509894915,-500.0,0.00066849,120]
[326849201,1715509894925,-4428.92,0.00066849,120]
[326849202,1715509894934,-974.56,0.00066849,120]
[326849203,1715509894943,-485.19271986,0.00066849,120]
[326849204,1715509894952,-1052.97,0.00066849,120]
[326849205,1715509894961,-3584.43,0.00066849,120]
[326849206,1715509894971,-721.17,0.00066849,120]
[326849207,1715509894980,-661.04,0.00066849,120]
[326849208,1715509894989,-625.85,0.00066849,120]
[326849209,1715509894998,-614.26,0.00066849,120]
[326849210,1715509895008,-980.18,0.00066849,120]
[326849211,1715509895016,-1131.83,0.00066849,120]
[326849212,1715509895026,-583.64,0.00066849,120]
[326849213,1715509895035,-513.88,0.00066849,120]
[326849214,1715509895044,-521.22400916,0.00066849,120]
[326849215,1715509895053,-2410.3,0.00066849,120]
[326849216,1715509895062,-5121.64,0.00066849,120]
[326849217,1715509895071,-1457.89,0.00066849,120]
[326849218,1715509895080,-719.29,0.00066849,120]
[326849219,1715509895089,-1228.7,0.00066849,120]
[326849220,1715509895098,-500.0,0.00066849,120]
[326849221,1715509895108,-500.0,0.00066849,120]
[326849222,1715509895117,-1264.94,0.00066849,120]
[326849223,1715509895127,-1513.78,0.00066849,120]
[326849224,1715509895136,-673.28,0.00066849,120]
[326849225,1715509895145,-694.76,0.00066849,120]
[326849226,1715509895158,-1272.39,0.00066849,120]
[326849227,1715509895167,-2272.31,0.00066849,120]
[326849228,1715509895176,-500.0,0.00066849,120]
[326849229,1715509895185,-11483.2,0.00066849,120]
[326849230,1715509895197,-500.0,0.00066849,7]
[326849231,1715509895206,-606.15,0.00066849,120]
[326849232,1715509895215,-500.0,0.00066849,120]
[326849233,1715509895224,-765.03,0.00066849,120]
[326849234,1715509895234,-500.0,0.00066849,120]
[326849235,1715509895243,-910.45,0.00066849,120]
[326849236,1715509895251,-1594.77,0.00066849,120]
[326849237,1715509895261,-749.73,0.00066849,120]
[326849238,1715509895271,-1094.1,0.00066849,120]
[326849239,1715509895280,-760.68,0.00066849,120]
[326849240,1715509895289,-1439.15,0.00066849,120]
[326849241,1715509895298,-728.36,0.00066849,120]
[326849242,1715509895307,-554.07,0.00066849,120]
[326849243,1715509895316,-851.93,0.00066849,120]
[326849244,1715509895325,-21061.66,0.00066849,120]
[326849245,1715509895335,-1275.67,0.00066849,120]
[326849246,1715509895345,-697.89,0.00066849,120]
[326849247,1715509895354,-1584.34,0.00066849,120]
[326849248,1715509895363,-1080.54,0.00066849,120]
[326849249,1715509895372,-500.0,0.00066849,120]
[326849250,1715509895381,-151.0,0.00067397,120]
[326849251,1715509895389,-500.0,0.00067945,120]
[326849252,1715509895401,-500.0,0.00067945,120]
[326849253,1715509895410,-792.18,0.00067945,120]
[326849254,1715509895419,-700.0,0.00067945,120]
[326849255,1715509895428,-500.0,0.00067945,120]
[326849256,1715509895437,-500.0,0.00067945,120]
[326849257,1715509895446,-500.0,0.00067945,120]
[326849258,1715509895455,-687.88,0.00067945,120]
[326849259,1715509895465,-1184.42,0.00067945,120]
[326849260,1715509895474,-622.05,0.00067945,120]
[326849261,1715509895483,-500.0,0.00067945,120]
[326849262,1715509895493,-500.0,0.00067945,120]
[326849263,1715509895502,-512.65159831,0.00067945,120]
[326849264,1715509895511,-1188.88,0.00067945,120]
[326849265,1715509895520,-500.0,0.00067945,120]
[326849266,1715509895529,-664.65,0.00067945,120]
[326849267,1715509895538,-500.0,0.00067945,120]
[326849268,1715509895547,-500.0,0.00067945,120]
[326849269,1715509895556,-706.45,0.00067945,120]
[326849270,1715509895564,-589.94,0.00067945,120]
[326849271,1715509895573,-500.0,0.00067945,120]
[326849272,1715509895582,-500.0,0.00067945,120]
[326849273,1715509895591,-718.87,0.00067945,120]
[326849274,1715509895600,-668.81,0.00067945,120]
[326849275,1715509895609,-1198.11,0.00067945,120]
[326849276,1715509895618,-530.68296118,0.00067945,120]
[326849277,1715509895627,-859.74,0.00067945,120]
[326849278,1715509895636,-500.0,0.00067945,120]
[326849279,1715509895645,-1019.78,0.00067945,120]
[326849280,1715509895656,-500.0,0.00067945,120]
[326849281,1715509895665,-1222.61,0.00067945,120]
[326849282,1715509895674,-500.0,0.00067945,120]
[326849283,1715509895682,-1076.09,0.00067945,4]
[326849284,1715509895691,-500.0,0.00067945,120]
[326849285,1715509895700,-777.18,0.00067945,120]
[326849286,1715509895709,-623.85,0.00067945,120]
[326849287,1715509895718,-879.42,0.00067945,120]
[326849288,1715509895727,-300.0,0.00067945,7]
[326849289,1715509895737,-500.0,0.00067945,120]
[326849290,1715509895747,-1022.56,0.00067945,120]
[326849291,1715509895756,-1415.7,0.00067945,120]
[326849292,1715509895765,-702.94,0.00067945,120]
[326849293,1715509895773,-676.96,0.00067945,120]
[326849294,1715509895782,-1146.59,0.00067945,120]
[326849295,1715509895791,-846.45,0.00067945,120]
[326849296,1715509895800,-500.0,0.00067945,120]
[326849297,1715509895809,-506.08,0.00067945,120]
[326849298,1715509895819,-694.21,0.00067945,120]
[326849299,1715509895828,-534.57,0.00067945,120]
[326849300,1715509895837,-628.13,0.00067945,120]
[326849301,1715509895845,-500.0,0.00067945,120]
[326849302,1715509895854,-563.98,0.00067945,120]
[326849303,1715509895863,-500.0,0.00067945,120]
[326849304,1715509895872,-500.0,0.00067945,120]
[326849305,1715509895881,-1333.29,0.00067945,120]
[326849306,1715509895890,-2080.97,0.00067945,120]
[326849307,1715509895901,-500.0,0.00067945,120]
[326849308,1715509895910,-697.5,0.00067945,120]
[326849309,1715509895919,-500.0,0.00067945,120]
[326849310,1715509895928,-1146.84,0.00067945,120]
[326849311,1715509895937,-500.0,0.00067945,120]
[326849312,1715509895946,-500.0,0.00067945,120]
[326849313,1715509895956,-500.0,0.00067945,120]
[326849314,1715509895965,-337.96216759,0.00067945,120]
[326849315,1715509895974,-1062.31,0.00067945,120]
[326849316,1715509895983,-887.25,0.00067945,120]
[326849317,1715509895992,-500.0,0.00067945,120]
[326849318,1715509896002,-884.99,0.00067945,120]
[326849319,1715509896011,-1945.84,0.00067945,120]
[326849320,1715509896021,-1101.29,0.00067945,120]
[326849321,1715509896029,-683.11,0.00067945,120]
[326849322,1715509896038,-500.0,0.00067945,120]
[326849323,1715509896047,-307.21131553,0.00067945,120]
[326849324,1715509896057,-500.0,0.00067945,120]
[326849325,1715509896067,-634.75,0.00067945,120]
[326849326,1715509896076,-1202.07,0.00067945,120]
[326849327,1715509896085,-500.0,0.00067945,120]
[326849328,1715509896094,-652.77,0.00067945,120]
[326849329,1715509896105,-665.8,0.00067945,120]
[326849330,1715509896114,-2405.12,0.00067945,120]
[326849331,1715509896123,-1296.67,0.00067945,120]
[326849332,1715509896134,-500.0,0.00067945,120]
[326849333,1715509896143,-262.34793311,0.00067945,120]
[326849334,1715509896154,-515.15,0.00067945,120]
[326849335,1715509896163,-1711.77,0.00067945,120]
[326849336,1715509896172,-500.0,0.00067945,120]
[326849337,1715509896181,-634.68,0.00067945,120]
[326849338,1715509896191,-674.93,0.00067945,120]
[326849339,1715509896204,-555.527266,0.00067945,120]
[326849340,1715509896213,-669.18,0.00067945,120]
[326849341,1715509896222,-662.7,0.00067945,120]
[326849342,1715509896340,-672.84,0.00067945,120]
[326849343,1715509896350,-500.0,0.00067945,120]
[326849344,1715509896359,-437.80634181,0.00067945,120]
[326849345,1715509896368,-1082.38,0.00067945,120]
[326849346,1715509896377,-500.0,0.00067945,120]
[326849347,1715509896386,-2510.37,0.00067945,120]
[326849348,1715509896395,-4167.16,0.00067945,120]
[326849349,1715509896406,-1216.89,0.00067945,7]
[326849350,1715509896415,-568.37,0.00067945,120]
[326849351,1715509896424,-500.0,0.00067945,120]
[326849352,1715509896433,-634.17,0.00067945,120]
[326849353,1715509896443,-711.19,0.00067945,120]
[326849354,1715509896452,-645.64,0.00067945,120]
[326849355,1715509896461,-634.59,0.00067945,120]
[326849356,1715509896470,-522.61,0.00067945,120]
[326849357,1715509896479,-1199.73,0.00067945,120]
[326849358,1715509896488,-852.85,0.00067945,120]
[326849359,1715509896498,-500.0,0.00067945,120]
[326849360,1715509896507,-625.2,0.00067945,120]
[326849361,1715509896516,-406.02395559,0.00067945,120]
[326849362,1715509896525,-500.0,0.00067945,120]
[326849363,1715509896534,-728.74,0.00067945,120]
[326849364,1715509896543,-501.04,0.00067945,120]
[326849365,1715509896552,-588.33,0.00067945,120]
[326849366,1715509896561,-1576.44,0.00067945,120]
[326849367,1715509896570,-500.0,0.00067945,120]
[326849368,1715509896579,-389.0,0.00067945,120]
[326849369,1715509896588,-642.78,0.00067945,120]
[326849370,1715509896598,-500.0,0.00067945,120]
[326849371,1715509896607,-1474.83,0.00067945,120]
[326849372,1715509896616,-500.0,0.00067945,120]
[326849373,1715509896625,-435.29076589,0.00067945,120]
[326849374,1715509896633,-1138.94,0.00067945,120]
[326849375,1715509896643,-500.0,0.00067945,120]
[326849376,1715509896654,-2052.53,0.00067945,120]
[326849377,1715509896663,-3343.91,0.00067945,120]
[326849378,1715509896672,-500.0,0.00067945,120]
[326849379,1715509896682,-1280.34,0.00067945,120]
[326849380,1715509896691,-589.15,0.00067945,120]
[326849381,1715509896700,-990.89,0.00067945,120]
[326849382,1715509896710,-1022.63,0.00067945,120]
[326849383,1715509896718,-1377.96,0.00067945,120]
[326849384,1715509896727,-359.45354509,0.00067945,120]
[326849385,1715509896736,-849.72,0.00067945,120]
[326849386,1715509896745,-500.0,0.00067945,120]
[326849387,1715509896755,-2169.41,0.00067945,120]
[326849388,1715509896764,-658.6,0.00067945,120]
[326849389,1715509896773,-926.02,0.00067945,120]
[326849390,1715509896783,-2031.16,0.00067945,120]
[326849391,1715509896792,-500.0,0.00067945,120]
[326849392,1715509896801,-1300.61,0.00067945,120]
[326849393,1715509896811,-4158.51,0.00067945,120]
[326849394,1715509896820,-500.0,0.00067945,120]
[326849395,1715509896829,-1707.07,0.00067945,120]
[326849396,1715509896841,-747.04,0.00067945,120]
[326849397,1715509896852,-500.0,0.00067945,120]
[326849398,1715509896863,-610.04,0.00067945,120]
[326849399,1715509896872,-616.93,0.00067945,120]
[326849400,1715509896881,-555.14,0.00067945,120]
[326849401,1715509896891,-663.17,0.00067945,60]
[326849402,1715509896901,-1965.65,0.00067945,120]
[326849403,1715509896910,-500.0,0.00067945,120]
[326849404,1715509896919,-1720.11,0.00067945,120]
[326849405,1715509896928,-512.13799257,0.00067945,120]
[326849406,1715509896937,-1258.86,0.00067945,7]
[326849407,1715509896946,-531.16,0.00067945,120]
[326849408,1715509896955,-500.0,0.00067945,120]
[326849409,1715509896964,-1275.8,0.00067945,120]
[326849410,1715509896973,-1330.34,0.00067945,120]
[326849411,1715509896983,-1477.44,0.00067945,120]
[326849412,1715509896992,-500.0,0.00067945,120]
[326849413,1715509897001,-500.0,0.00067945,120]
[326849414,1715509897010,-1415.41,0.00067945,120]
[326849415,1715509897019,-790.3,0.00067945,120]
[326849416,1715509897029,-500.0,0.00067945,120]
[326849417,1715509897038,-1299.65,0.00067945,120]
[326849418,1715509897048,-631.96,0.00067945,120]
[326849419,1715509897057,-775.43,0.00067945,120]
[326849420,1715509897067,-500.0,0.00067945,120]
[326849421,1715509897076,-4428.92,0.00067945,120]
[326849422,1715509897086,-974.56,0.00067945,120]
[326849423,1715509897095,-1052.97,0.00067945,120]
[326849424,1715509897104,-3584.43,0.00067945,120]
[326849425,1715509897113,-721.17,0.00067945,120]
[326849426,1715509897122,-661.04,0.00067945,120]
[326849427,1715509897131,-625.85,0.00067945,120]
[326849428,1715509897140,-614.26,0.00067945,120]
[326849429,1715509897151,-980.18,0.00067945,120]
[326849430,1715509897161,-1131.83,0.00067945,120]
[326849431,1715509897170,-583.64,0.00067945,120]
[326849432,1715509897179,-513.88,0.00067945,120]
[326849433,1715509897188,-2410.3,0.00067945,120]
[326849434,1715509897197,-5121.64,0.00067945,120]
[326849435,1715509897211,-1457.89,0.00067945,120]
[326849436,1715509897220,-719.29,0.00067945,120]
[326849437,1715509897229,-1228.7,0.00067945,120]
[326849438,1715509897237,-500.0,0.00067945,120]
[326849439,1715509897247,-273.79841887,0.00067945,120]
[326849440,1715509897256,-1264.94,0.00067945,120]
[326849441,1715509897265,-1513.78,0.00067945,120]
[326849442,1715509897274,-673.28,0.00067945,120]
[326849443,1715509897283,-694.76,0.00067945,120]
[326849444,1715509897292,-1272.39,0.00067945,120]
[326849445,1715509897301,-2272.31,0.00067945,120]
[326849446,1715509897311,-500.0,0.00067945,120]
[326849447,1715509897321,-11483.2,0.00067945,120]
[326849448,1715509897330,-500.0,0.00067945,7]
[326849449,1715509897340,-606.15,0.00067945,120]
[326849450,1715509897351,-542.87861871,0.00067945,120]
[326849451,1715509897371,-765.03,0.00067945,120]
[326849452,1715509897388,-500.0,0.00067945,120]
[326849453,1715509897404,-910.45,0.00067945,120]
[326849454,1715509897420,-1594.77,0.00067945,120]
[326849455,1715509897444,-749.73,0.00067945,120]
[326849456,1715509897472,-1094.1,0.00067945,120]
[326849457,1715509897500,-760.68,0.00067945,120]
[326849458,1715509897523,-1439.15,0.00067945,120]
[326849459,1715509897538,-728.36,0.00067945,120]
[326849460,1715509897552,-554.07,0.00067945,120]
[326849461,1715509897566,-851.93,0.00067945,120]
[326849462,1715509897581,-21061.66,0.00067945,120]
[326849463,1715509897598,-1275.67,0.00067945,120]
[326849464,1715509897615,-697.89,0.00067945,120]
[326849465,1715509897626,-1584.34,0.00067945,120]
[326849466,1715509897640,-1080.54,0.00067945,120]
[326849467,1715509897657,-500.0,0.00067945,120]
[326849468,1715509897671,-636.57894699,0.00068114,28]
[326849469,1715509897685,-2000.0,0.00068258,120]
[326849470,1715509897698,-500.0,0.00068493,120]
[326849471,1715509897712,-250.0,0.00068493,120]
[326849472,1715509897726,-500.0,0.00068493,120]
[326849473,1715509897738,-750.0,0.00068493,120]
[326849474,1715509897753,-1000.0,0.00068493,120]
[326849475,1715509897766,-1250.0,0.00068493,120]
[326849476,1715509897779,-306.43052337,0.00068493,120]
[326849477,1715509897791,-809.09,0.00068493,120]
[326849478,1715509897805,-809.09,0.00068493,120]
[326849479,1715509897819,-809.09,0.00068493,120]
[326849480,1715509897832,-809.09,0.00068493,120]
[326849481,1715509897845,-809.09,0.00068493,120]
[326849482,1715509897859,-809.09,0.00068493,120]
[326849483,1715509897872,-809.09,0.00068493,120]
[326849484,1715509897885,-809.09,0.00068493,120]
[326849485,1715509897898,-809.09,0.00068493,120]
[326849486,1715509897913,-809.09,0.00068493,120]
[326849487,1715509897926,-809.09,0.00068493,120]
[326849488,1715509897938,-809.09,0.00068493,120]
[326849489,1715509897952,-809.09,0.00068493,120]
[326849490,1715509897965,-250.0,0.00068493,30]
[326849491,1715509897977,-500.0,0.00068493,31]
[326849492,1715509897990,-207.0063677,0.00068493,32]
[326849493,1715509898002,-151.0,0.00068575,120]
[326849494,1715509898015,-75663.88,0.000687,120]
[326849495,1715509898028,-166.666666,0.00068817,120]
[326849496,1715509898040,-263.72124395,0.00069,7]
[326849497,1715509898054,-2944.528993,0.00069,120]
[326849498,1715509898066,-500.0,0.00069041,120]
[326849499,1715509898082,-500.0,0.00069041,120]
[326849500,1715509898094,-792.18,0.00069041,120]
[326849501,1715509898106,-700.0,0.00069041,120]
[326849502,1715509898118,-500.0,0.00069041,120]
[326849503,1715509898130,-500.0,0.00069041,120]
[326849504,1715509898143,-500.0,0.00069041,120]
[326849505,1715509898158,-687.88,0.00069041,120]
[326849506,1715509898170,-1184.42,0.00069041,120]
[326849507,1715509898183,-622.05,0.00069041,120]
[326849508,1715509898196,-188.76014431,0.00069041,120]
[326849509,1715509898213,-500.0,0.00069041,120]
[326849510,1715509898226,-1188.88,0.00069041,120]
[326849511,1715509898240,-500.0,0.00069041,120]
[326849512,1715509898253,-664.65,0.00069041,120]
[326849513,1715509898266,-500.0,0.00069041,120]
[326849514,1715509898281,-706.45,0.00069041,120]
[326849515,1715509898294,-589.94,0.00069041,120]
[326849516,1715509898307,-500.0,0.00069041,120]
[326849517,1715509898320,-500.0,0.00069041,120]
[326849518,1715509898334,-718.87,0.00069041,120]
[326849519,1715509898347,-668.81,0.00069041,120]
[326849520,1715509898359,-1198.11,0.00069041,120]